Workbook

Sheet Ark1
A1: MUSICAL FORMS | D1: NC 2 2018 Oslo
A2: Kategori:
A3: Navn | B3: Klubb | C3: Dommer 1 | D3: Dommer 2 | E3: Dommer 3 | F3: Dommer 4 | G3: Dommer 5 | H3: TOTAL | I3: TELLENDE | J3: PLASS | K3: =LARGE($I$4:$I$6,2) -> 24.2 | L3: =LARGE($I$4:$I$6,3) -> 0 | M3: =LARGE($I$4:$I$6,4) -> 
A4: Dame | H4: =SUM(C4:G4) -> 0 | I4: =SUM(H4-M4) -> 0 | K4: =MAXA(C4:G4) -> 0 | L4: =MIN(C4:G4) -> 0 | M4: =SUM(K4:L4) -> 0 | O4: =SUM(C4:G4) -> 0
A5: Helle Seline Johnsen | B5: Tjeldsund Kbk | C5: 8.3 | D5: 8.3 | E5: 8.4 | F5: 8.2 | G5: 7.7 | H5: =SUM(C5:G5) -> 40.9 | I5: =SUM(H5-M5) -> 24.8 | J5: 1 | K5: =MAXA(C5:G5) -> 8.4 | L5: =MIN(C5:G5) -> 7.7 | M5: =SUM(K5:L5) -> 16.1 | O5: =SUM(C5:G5) -> 40.9
A6: Synnøve Magnusdottir | B6: Tjeldsund Kbk | C6: 8.2 | D6: 8.1 | E6: 8.2 | F6: 7.9 | G6: 7.9 | H6: =SUM(C6:G6) -> 40.3 | I6: =SUM(H6-M6) -> 24.2 | J6: 2 | K6: =MAXA(C6:G6) -> 8.2 | L6: =MIN(C6:G6) -> 7.9 | M6: =SUM(K6:L6) -> 16.1 | O6: 40.3
A7: Sanna Marina Johnsen | B7: Tjeldsund Kbk | C7: 7.7 | D7: 8 | E7: 8.1 | F7: 7.6 | G7: 7.6 | H7: =SUM(C7:G7) -> 39 | I7: =SUM(H7-M7) -> 23.3 | J7: 3 | K7: =MAXA(C7:G7) -> 8.1 | L7: =MIN(C7:G7) -> 7.6 | M7: =SUM(K7:L7) -> 15.7 | O7: 39
A8: Johanne Eivik | B8: Tjeldsund Kbk | C8: 7.5 | D8: 7.5 | E8: 7.6 | F8: 7.5 | G8: 7.1 | H8: =SUM(C8:G8) -> 37.2 | I8: =SUM(H8-M8) -> 22.5 | J8: 4 | K8: =MAXA(C8:G8) -> 7.6 | L8: =MIN(C8:G8) -> 7.1 | M8: =SUM(K8:L8) -> 14.7 | O8: 37.2
H9: =SUM(C9:G9) -> 0 | I9: =SUM(H9-M9) -> 0 | K9: =MAXA(C9:G9) -> 0 | L9: =MIN(C9:G9) -> 0 | M9: =SUM(K9:L9) -> 0 | O9: 0
A10: Menn | H10: =SUM(C10:G10) -> 0 | I10: =SUM(H10-M10) -> 0 | K10: =MAXA(C10:G10) -> 0 | L10: =MIN(C10:G10) -> 0 | M10: =SUM(K10:L10) -> 0 | O10: 0
A11: Daniel Hansson | B11: Østersund | C11: 8.7 | D11: 8.5 | E11: 8.4 | F11: 8.3 | G11: 8.4 | H11: =SUM(C11:G11) -> 42.3 | I11: =SUM(H11-M11) -> 25.3 | J11: 1 | K11: =MAXA(C11:G11) -> 8.7 | L11: =MIN(C11:G11) -> 8.3 | M11: =SUM(K11:L11) -> 17 | O11: 42.3
A12: Marcus Aarsund | B12: Tjeldsund Kbk | C12: 8.4 | D12: 8.4 | E12: 8.2 | F12: 8.2 | G12: 8 | H12: =SUM(C12:G12) -> 41.2 | I12: =SUM(H12-M12) -> 24.8 | J12: 2 | K12: =MAXA(C12:G12) -> 8.4 | L12: =MIN(C12:G12) -> 8 | M12: =SUM(K12:L12) -> 16.4 | O12: 41.2
H13: =IF(O13=0,"",SUM(C13:G13)) ->  | K13: =MAXA(C13:G13) -> 0 | L13: =MIN(C13:G13) -> 0 | M13: =SUM(K13:L13) -> 0 | O13: 0
H14: =IF(O14=0,"",SUM(C14:G14)) ->  | K14: =MAXA(C14:G14) -> 0 | L14: =MIN(C14:G14) -> 0 | M14: =SUM(K14:L14) -> 0 | O14: 0
H15: =IF(O15=0,"",SUM(C15:G15)) -> 
H16: =IF(O16=0,"",SUM(C16:G16)) -> 
H17: =IF(O17=0,"",SUM(C17:G17)) -> 
H18: =IF(O18=0,"",SUM(C18:G18)) -> 

Sheet Ark2

Sheet Ark3
